bitfinex/quotes_SOLUSD_20250222
["timestamp","ask_amount","ask_price","bid_price","bid_amount"]
[1740190404040,1.5461,171.46,171.44,0.063]
[1740190404241,82.7461,171.46,171.44,0.063]
[1740190405441,5.8326,171.45,171.44,0.063]
[1740190406542,8.73219674,171.45,171.44,0.063]
[1740190409141,5.8326,171.45,171.44,0.063]
[1740190418574,5.8323,171.46,171.44,0.063]
[1740190421265,5.8319,171.47,171.44,0.063]
[1740190423473,81.2,171.48,171.44,0.063]
[1740190423678,8.83292523,171.49,171.44,0.063]
[1740190424279,0.03,171.49,171.44,0.063]
[1740190424473,0.03,171.49,171.45,18.64964886]
[1740190425981,0.03,171.49,171.46,11.77409536]
[1740190426283,0.03,171.49,171.47,18.64964886]
[1740190445926,0.03,171.49,171.45,18.71264886]
[1740190446087,0.03,171.49,171.45,24.54514886]
[1740190462020,0.03,171.49,171.46,11.77409536]
[1740190462246,0.03,171.49,171.47,18.64964886]
[1740190471754,0.03,171.49,171.45,0.063]
[1740190471957,1.6162,171.48,171.45,0.063]
[1740190473644,7.448,171.48,171.45,0.063]
[1740190482070,1.6162,171.48,171.45,0.063]
[1740190482434,7.4477,171.48,171.45,0.063]
[1740190483362,88.6477,171.48,171.45,0.063]
[1740190486976,81.2,171.48,171.45,0.063]
[1740190487178,81.2,171.48,171.45,18.71264886]
[1740190487673,87.0318,171.48,171.45,0.063]
[1740190499775,7.3759,171.47,171.45,0.063]
[1740190504669,1.544,171.47,171.45,0.063]
[1740190504873,87.0316,171.48,171.45,0.063]
[1740190504874,81.2,171.48,171.45,0.063]
[1740190505408,81.2,171.48,171.45,18.71264886]
[1740190505970,81.2,171.48,171.47,18.64964886]
[1740190506209,0.03,171.49,171.47,18.64964886]
[1740190506709,0.03,171.49,171.48,5.8315]
[1740190507504,0.03,171.49,171.48,36.25524422]
[1740190507710,0.03,171.49,171.46,80.5]
[1740190508007,0.03,171.49,171.45,0.063]
[1740190509808,5.8612,171.49,171.45,0.063]
[1740190510612,5.8612,171.49,171.45,18.71264886]
[1740190510613,0.03,171.49,171.45,18.71264886]
[1740190511911,0.03,171.49,171.47,18.64964886]
[1740190512592,0.03,171.49,171.45,18.71264886]
[1740190517106,0.03,171.49,171.45,0.063]
[1740190517398,20.0,171.48,171.45,0.063]
[1740190519201,5.8319,171.47,171.45,0.063]
[1740190519509,81.2,171.46,171.45,0.063]
[1740190520307,4.36,171.47,171.45,0.063]
[1740190520511,27.4717,171.46,171.45,0.063]
[1740190520689,33.7713,171.46,171.45,0.063]
[1740190521388,13.7713,171.46,171.45,0.063]
[1740190521905,33.7713,171.46,171.45,0.0001]
[1740190522197,20.0,171.43,171.42,0.063]
[1740190523526,25.8332,171.43,171.42,0.063]
[1740190526397,40.4164,171.43,171.35,11.77409536]
[1740190526581,81.2,171.42,171.35,11.77409536]
[1740190526781,4.36,171.41,171.35,11.77409536]
[1740190526982,5.8343,171.4,171.35,11.77409536]
[1740190530416,81.2,171.39,171.35,11.77409536]
[1740190531126,5.8349,171.38,171.35,11.77409536]
[1740190531303,5.8349,171.38,171.29,5.9009]
[1740190531500,81.044,171.37,171.33,11.77409536]
[1740190532629,81.044,171.36,171.31,11.77409536]
[1740190533327,5.836,171.35,171.31,11.77409536]
[1740190534228,81.044,171.36,171.31,11.77409536]
[1740190534526,86.8796,171.36,171.31,11.77409536]
[1740190535026,86.8796,171.36,171.31,17.61129536]
[1740190535522,81.044,171.36,171.31,17.61129536]
[1740190535927,86.8797,171.36,171.31,11.83709536]
[1740190536425,86.8797,171.36,171.31,17.67439536]
[1740190538112,5.8646,171.39,171.33,11.77409536]
[1740190538538,5.8646,171.39,171.32,18.64964886]
[1740190538715,0.03,171.39,171.34,18.64964886]
[1740190540319,0.03,171.39,171.35,5.836]
[1740190546222,0.03,171.39,171.32,5.837]
[1740190546530,0.03,171.39,171.33,18.64964886]
[1740190547632,0.03,171.39,171.32,24.48664886]
[1740190551443,0.03,171.39,171.32,39.07914886]
[1740190553141,0.03,171.39,171.33,11.77409536]
[1740190553343,0.03,171.39,171.36,18.64964886]
[1740190553643,0.03,171.39,171.37,5.8353]
[1740190555930,0.03,171.39,171.38,18.64964886]
[1740190557228,0.03,171.39,171.36,24.48524886]
[1740190559044,0.03,171.39,171.36,18.64964886]
[1740190559428,0.03,171.39,171.34,80.5]
[1740190561027,0.03,171.39,171.35,0.063]
[1740190563743,0.03,171.39,171.35,11.83709536]
[1740190566321,0.03,171.39,171.35,0.063]
[1740190572662,26.3961,171.36,171.35,0.063]
[1740190573635,26.3961,171.36,171.31,0.063]
[1740190573953,81.044,171.35,171.31,0.063]
[1740190574736,5.8363,171.34,171.31,0.063]
[1740190578460,86.8803,171.34,171.31,0.063]
[1740190578841,86.8803,171.34,171.28,11.40009536]
[1740190581269,81.044,171.33,171.27,0.063]
[1740190582473,86.8807,171.33,171.27,0.063]
[1740190583852,86.8807,171.33,171.27,18.71264886]
[1740190584361,88.4118,171.33,171.27,18.71264886]
[1740190585471,88.4118,171.33,171.27,24.55134886]
[1740190585963,88.4118,171.33,171.27,0.063]
[1740190586163,88.4118,171.33,171.27,18.71264886]
[1740190586472,88.4118,171.33,171.27,24.55134886]
[1740190588163,88.4118,171.33,171.27,18.71264886]
[1740190589477,88.4118,171.33,171.27,0.063]
[1740190589670,4.34,171.32,171.27,0.063]
[1740190590840,4.34,171.32,171.27,24.55124886]
[1740190591258,4.34,171.32,171.28,11.77409536]
[1740190591779,4.34,171.32,171.28,17.61229536]
[1740190593349,4.34,171.32,171.28,5.8382]
[1740190595451,4.34,171.32,171.27,24.55124886]
[1740190596258,0.03,171.35,171.28,11.77409536]
[1740190596760,5.866,171.35,171.28,11.77409536]
[1740190596957,0.03,171.32,171.28,11.77409536]
[1740190597785,0.03,171.32,171.3,18.64964886]
[1740190600449,0.03,171.32,171.28,5.8383]
[1740190605697,0.03,171.32,171.3,5.8377]
[1740190606115,0.03,171.32,171.31,30.42374422]
[1740190607679,0.03,171.32,171.31,36.26104422]
[1740190611887,0.03,171.35,171.34,30.42374422]
[1740190614083,0.03,171.35,171.34,36.26004422]
[1740190618307,0.03,171.35,171.34,116.76004422]
[1740190624816,0.03,171.35,171.34,24.48594886]
[1740190625114,0.03,171.35,171.34,36.26004422]
[1740190627611,0.03,171.35,171.34,30.42374422]
[1740190627811,0.03,171.35,171.34,11.77409536]
[1740190628825,0.03,171.35,171.34,30.42374422]
[1740190631526,0.03,171.35,171.34,36.26004422]
[1740190642317,0.03,171.35,171.34,24.48594886]
[1740190642644,0.03,171.35,171.34,18.64964886]
[1740190643651,0.03,171.35,171.32,80.563]
[1740190643932,0.03,171.35,171.32,0.063]
[1740190644432,0.03,171.35,171.32,18.71264886]
[1740190647129,10.206,171.35,171.32,0.063]
[1740190648123,4.37,171.35,171.32,0.063]
[1740190649052,10.2061,171.35,171.32,0.063]
[1740190649706,4.37,171.35,171.32,0.063]
[1740190653331,10.206,171.35,171.32,0.063]
[1740190653528,21.98009536,171.35,171.32,0.063]
[1740190654726,20.0,171.33,171.32,0.063]
[1740190655639,25.8366,171.33,171.32,0.063]
[1740190672153,81.044,171.34,171.32,0.063]
[1740190675840,0.03,171.35,171.34,18.64964886]
[1740190677034,0.03,171.35,171.34,24.48594886]
[1740190682459,0.03,171.35,171.34,104.98594886]
[1740190684658,5.77916794,171.43,171.37,11.77409536]
[1740190686166,5.77916794,171.43,171.37,17.60919536]
[1740190686974,87.0309,171.44,171.37,17.60919536]
[1740190687266,81.044,171.48,171.41,11.77409536]
[1740190687571,5.8319,171.47,171.41,11.77409536]
[1740190688391,5.8319,171.47,171.41,17.60789536]
[1740190688687,5.8319,171.47,171.41,11.77409536]
[1740190689869,5.8319,171.47,171.42,18.64964886]
[1740190690049,86.8757,171.48,171.45,11.77409536]
[1740190690749,86.8757,171.48,171.43,11.77409536]
[1740190692587,81.044,171.48,171.44,18.64964886]
[1740190692861,0.03,171.47,171.45,11.77409536]
[1740190695162,0.03,171.47,171.46,18.64964886]
[1740190696082,0.03,171.47,171.46,99.14964886]
[1740190697347,0.03,171.47,171.46,104.98184886]
[1740190699782,0.03,171.47,171.46,105.98184886]
[1740190700376,0.03,171.47,171.46,104.98184886]
[1740190704365,0.03,171.47,171.46,116.75594422]
[1740190705685,0.03,171.47,171.46,99.14964886]
[1740190705870,0.03,171.47,171.46,18.64964886]
[1740190706181,0.03,171.47,171.44,80.5]
[1740190706575,0.03,171.47,171.45,18.64964886]
[1740190706880,0.03,171.47,171.45,30.42374422]
[1740190719663,0.03,171.47,171.45,36.25624422]
[1740190720082,0.03,171.47,171.45,30.42374422]
[1740190724571,0.03,171.47,171.45,11.77409536]
[1740190724893,0.03,171.47,171.41,11.77409536]
[1740190725894,6.6768,171.47,171.41,11.77409536]
[1740190727194,5.8322,171.46,171.41,11.77409536]
[1740190729692,6.6768,171.47,171.43,11.77409536]
[1740190729987,12.5088,171.47,171.43,11.77409536]
[1740190730502,12.5088,171.47,171.41,30.42374422]
[1740190732006,12.5088,171.47,171.41,36.25764422]
[1740190732881,6.6768,171.47,171.43,11.77409536]
[1740190733276,12.5087,171.47,171.43,11.77409536]
[1740190735286,12.5087,171.47,171.42,5.8334]
[1740190739198,12.5087,171.47,171.41,36.25754422]
[1740190743890,1.5041,171.46,171.39,5.8975]
[1740190744077,81.044,171.45,171.39,0.063]
[1740190745988,5.8329,171.44,171.39,0.063]
[1740190747508,20.4152,171.44,171.39,0.063]
[1740190747704,81.044,171.43,171.39,0.063]
[1740190747906,81.044,171.42,171.39,0.063]
[1740190748096,86.8779,171.41,171.39,0.063]
[1740190748583,97.8845,171.41,171.39,0.063]
[1740190753613,81.044,171.4,171.39,0.063]
[1740190755614,86.8783,171.4,171.39,0.063]
[1740190756694,1.5041,171.42,171.39,0.063]
[1740190756894,87.0333,171.43,171.39,0.063]
[1740190758010,81.2,171.43,171.39,0.063]
[1740190760910,81.2,171.43,171.39,11.83709536]
[1740190761621,81.2,171.46,171.39,11.83709536]
[1740190762620,81.2,171.46,171.4,5.8343]
[1740190763216,81.2,171.46,171.41,11.77409536]
[1740190764620,81.23,171.46,171.41,11.77409536]
[1740190764821,81.23,171.46,171.41,17.60779536]
[1740190765898,87.0622,171.46,171.41,17.60779536]
[1740190767023,81.23,171.46,171.41,17.60779536]
[1740190768627,81.23,171.46,171.43,11.77409536]
[1740190770223,0.03,171.46,171.43,11.77409536]
[1740190771012,0.03,171.46,171.43,17.60709536]
[1740190771525,0.03,171.46,171.45,11.77409536]
[1740190772914,0.03,171.46,171.45,17.60669536]
[1740190775705,0.03,171.46,171.45,36.25634422]
[1740190778327,0.03,171.46,171.45,83.35272566]
[1740190779831,0.03,171.47,171.46,18.64964886]
[1740190780426,0.03,171.47,171.46,24.48184886]
[1740190781028,0.03,171.49,171.48,38.64964886]
[1740190781231,0.03,171.49,171.48,130.92374422]
[1740190782130,0.03,171.49,171.48,132.58134422]
[1740190782826,0.03,171.49,171.48,138.41284422]
[1740190784838,0.03,171.53,171.49,19.64964886]
[1740190785043,0.03,171.53,171.52,30.42374422]
[1740190786016,0.03,171.53,171.52,36.25394422]
[1740190787329,0.03,171.53,171.52,17.60429536]
[1740190789346,0.03,171.53,171.52,116.75394422]
[1740190789647,0.03,171.53,171.52,163.85032566]
[1740190791055,0.0001,171.53,171.52,172.04542566]
[1740190791352,0.0001,171.54,171.53,20.30724886]
[1740190791558,0.0001,171.54,171.53,101.80724886]
[1740190792340,0.0001,171.54,171.53,107.63704886]
[1740190793033,0.0001,171.54,171.53,100.14964886]
[1740190795733,0.0001,171.54,171.53,105.97944886]
[1740190795954,0.0001,171.54,171.53,100.14964886]
[1740190796462,0.0001,171.54,171.53,105.97944886]
[1740190798148,0.0001,171.54,171.52,11.77409536]
[1740190800952,0.0001,171.54,171.5,11.77409536]
[1740190801869,0.0001,171.54,171.48,11.77409536]
[1740190802069,81.2,171.53,171.48,11.77409536]
[1740190802469,1.6582,171.51,171.48,11.77409536]
[1740190802670,1.6582,171.51,171.5,0.063]
[1740190803057,82.8582,171.51,171.5,0.063]
[1740190803261,7.4887,171.51,171.5,0.063]
[1740190807476,60.8887,171.51,171.5,0.063]
[1740190815486,60.8887,171.51,171.37,14.588]
[1740190815686,20.0,171.48,171.42,11.77409536]
[1740190816058,53.4,171.47,171.42,11.77409536]
[1740190816372,20.0,171.47,171.4,11.77409536]
[1740190817195,87.0322,171.46,171.4,11.77409536]
[1740190818199,87.0322,171.46,171.42,11.77409536]
[1740190825585,87.0322,171.46,171.4,11.77409536]
[1740190826388,87.0322,171.46,171.4,11.83709536]
[1740190837192,81.2,171.45,171.4,0.063]
[1740190838475,5.8329,171.44,171.4,0.063]
[1740190839499,20.4152,171.44,171.4,0.063]
[1740190840299,20.0,171.41,171.4,0.063]
[1740190840486,30.1539,171.41,171.4,0.063]
[1740190843800,25.8339,171.41,171.4,0.063]
[1740190844001,30.1539,171.41,171.4,0.063]
[1740190844201,25.8339,171.41,171.4,0.063]
[1740190844376,30.1539,171.41,171.4,0.063]
[1740190848098,25.8339,171.41,171.4,0.063]
[1740190848481,30.1539,171.41,171.4,0.063]
[1740190849301,31.7139,171.41,171.4,0.063]
[1740190849606,39.3734,171.41,171.4,0.063]
[1740190850098,39.3734,171.41,171.39,0.063]
[1740190850301,16.09409536,171.4,171.39,0.063]
[1740190851298,4.32,171.4,171.39,0.063]
[1740190851505,10.1543,171.4,171.39,0.063]
[1740190853905,13.06974763,171.4,171.39,0.063]
[1740190859805,5.8343,171.4,171.39,0.063]
[1740190860110,10.1543,171.4,171.39,0.063]
[1740190860600,5.8343,171.4,171.39,0.063]
[1740190860999,57.72,171.43,171.39,0.063]
[1740190862806,63.5533,171.43,171.39,0.063]
[1740190863510,57.72,171.43,171.39,0.063]
[1740190863826,21.33171043,171.47,171.39,11.83709536]
[1740190863827,53.4,171.47,171.39,11.83709536]
[1740190864120,21.42704082,171.5,171.43,11.77409536]
[1740190864121,53.43,171.5,171.43,11.77409536]
[1740190864432,63.5809,171.5,171.43,11.77409536]
[1740190864590,53.43,171.5,171.43,11.77409536]
[1740190864790,81.2,171.49,171.43,11.77409536]
[1740190865023,81.2,171.49,171.43,17.60699536]
[1740190866399,87.0313,171.49,171.42,18.64964886]
[1740190867410,87.0313,171.49,171.42,30.42374422]
[1740190869491,81.2,171.48,171.42,30.42374422]
[1740190870127,5.8319,171.47,171.42,30.42374422]
[1740190873234,5.8319,171.47,171.42,11.77409536]
[1740190875143,5.8319,171.47,171.44,11.77409536]
[1740190875523,87.0319,171.47,171.44,11.77409536]
[1740190876137,81.2,171.47,171.44,11.77409536]
[1740190877917,87.0319,171.47,171.44,11.77409536]
[1740190878341,81.2,171.47,171.44,11.77409536]
[1740190878537,87.0319,171.47,171.44,11.77409536]
[1740190881342,87.0319,171.47,171.42,11.77409536]
[1740190881523,87.0319,171.47,171.41,1.5515]
[1740190881726,101.6117,171.47,171.41,1.5515]
[1740190882138,87.0319,171.47,171.41,1.5515]
[1740190883256,81.2,171.47,171.42,11.77409536]
[1740190883546,81.2,171.47,171.44,11.77409536]
[1740190884821,81.2,171.47,171.44,17.60699536]
[1740190885020,81.23,171.47,171.44,17.60699536]
[1740190886726,0.03,171.47,171.46,11.77409536]
[1740190886925,0.03,171.47,171.46,30.42374422]
[1740190888122,0.03,171.47,171.46,36.25594422]
[1740190893656,0.03,171.47,171.46,37.83584422]
[1740190893826,0.03,171.47,171.46,26.06174886]
[1740190894022,0.03,171.47,171.45,11.77409536]
[1740190894228,0.03,171.47,171.43,11.77409536]
[1740190894428,81.2,171.46,171.4,0.063]
[1740190894756,0.03,171.47,171.4,0.063]
[1740190894757,87.0328,171.45,171.4,11.83709536]
[1740190895058,87.0328,171.45,171.4,0.063]
[1740190895059,134.6,171.44,171.4,0.063]
[1740190895229,138.92,171.43,171.4,0.063]
[1740190897951,144.7533,171.43,171.4,0.063]
[1740190899057,81.2,171.42,171.4,0.063]
[1740190899357,81.2,171.41,171.4,0.063]
[1740190900059,53.4,171.42,171.4,0.063]
[1740190900756,10.1533,171.43,171.4,0.063]
[1740190900757,53.4,171.41,171.4,0.063]
[1740190900931,59.2339,171.41,171.4,0.063]
[1740190901132,5.8339,171.41,171.4,0.063]
[1740190901743,5.8339,171.41,171.4,0.0001]
[1740190901961,1.0,171.4,171.39,0.063]
[1740190903341,6.8343,171.4,171.39,0.063]
[1740190904056,5.8343,171.4,171.39,0.063]
[1740190905148,10.1543,171.4,171.39,0.063]
[1740190913851,4.32,171.4,171.39,0.063]
[1740190914051,5.834,171.41,171.39,0.063]
[1740190914353,10.154,171.41,171.39,0.063]
[1740190916472,20.0,171.4,171.39,0.063]
[1740190916657,24.32,171.4,171.39,0.063]
[1740190917867,30.1543,171.4,171.39,0.063]
[1740190919065,20.0,171.4,171.39,0.063]
[1740190920579,25.8343,171.4,171.39,0.063]
[1740190925573,20.0,171.4,171.39,0.063]
[1740190926577,53.4,171.41,171.39,0.063]
[1740190926787,53.4,171.41,171.4,11.77409536]
[1740190927286,4.32,171.43,171.4,11.77409536]
[1740190928085,24.32,171.43,171.4,11.77409536]
[1740190928775,30.1533,171.43,171.39,0.063]
[1740190929502,30.1833,171.43,171.39,0.063]
[1740190932092,134.6,171.42,171.39,0.063]
[1740190932501,5.8339,171.41,171.39,0.063]
[1740190934584,81.2,171.4,171.39,0.063]
[1740190935691,87.0343,171.4,171.39,0.063]
[1740190936385,20.0,171.37,171.32,0.063]
[1740190936585,81.2,171.36,171.32,0.063]
[1740190938503,5.836,171.35,171.32,0.063]
[1740190940082,81.2,171.34,171.32,0.063]
[1740190941496,5.8366,171.33,171.32,0.063]
[1740190942316,25.8366,171.33,171.32,0.063]
[1740190947497,5.8363,171.34,171.32,0.063]
[1740190948218,5.7142969,171.34,171.32,0.063]
[1740190953223,59.2361,171.35,171.32,11.83709536]
[1740190953422,53.4,171.35,171.32,11.83709536]
[1740190953726,5.8354,171.37,171.34,11.77409536]
[1740190954346,5.8354,171.37,171.32,11.83709536]
[1740190956338,5.8354,171.37,171.32,0.063]
[1740190956642,53.4,171.38,171.32,11.83709536]
[1740190956933,63.555,171.38,171.32,19.18389536]
[1740190957510,57.72,171.38,171.32,19.18389536]
[1740190958733,81.2,171.37,171.34,11.77409536]
[1740190959331,81.2,171.37,171.32,13.34699536]
[1740190959513,5.8356,171.36,171.32,13.34699536]
[1740190959930,10.1556,171.36,171.32,13.34699536]
[1740190961219,4.32,171.36,171.32,13.34699536]
[1740190961418,4.32,171.36,171.32,19.18389536]
[1740190961630,4.32,171.36,171.34,11.77409536]
[1740190964838,4.32,171.36,171.32,13.34699536]
[1740190966741,4.35,171.36,171.32,13.34699536]
[1740190967634,10.1857,171.36,171.32,13.34699536]
[1740190967839,10.1857,171.36,171.32,11.83709536]
[1740190968538,10.1857,171.36,171.32,0.063]
[1740190970531,134.6,171.35,171.32,0.063]
[1740190971648,5.8363,171.34,171.32,0.063]
[1740190973435,134.6,171.35,171.32,0.063]
[1740190973749,140.436,171.35,171.32,11.83709536]
[1740190975362,134.6,171.35,171.32,11.83709536]
[1740190976625,81.2,171.35,171.32,11.83709536]
[1740190979452,87.0361,171.35,171.32,11.83709536]
[1740190979651,87.0361,171.35,171.32,0.063]
[1740190981154,101.6261,171.35,171.32,0.063]
[1740190981755,134.6,171.34,171.32,0.063]
[1740190982460,5.8366,171.33,171.32,0.063]
[1740190983360,21.0066,171.35,171.32,0.063]
[1740190983558,5.8363,171.34,171.32,0.063]
[1740190988467,134.6,171.33,171.32,0.063]
[1740190990240,140.4366,171.33,171.32,0.063]
[1740190993155,20.0,171.31,171.28,0.063]
[1740190993464,138.92,171.3,171.28,0.063]
[1740190994848,5.838,171.29,171.28,0.063]
[1740190995046,20.0,171.25,171.22,0.063]
[1740190995252,81.2,171.24,171.22,0.063]
[1740190998770,134.6,171.23,171.22,0.063]
[1740191000351,140.44,171.23,171.22,0.063]
[1740191000547,5.84,171.23,171.22,0.063]
[1740191003480,5.84,171.23,171.22,0.0001]
[1740191004978,20.0,171.2,171.14,0.063]
[1740191005175,20.0,171.16,171.14,0.063]
[1740191005375,4.32,171.15,171.14,0.063]
[1740191006972,13.01956656,171.15,171.14,0.063]
[1740191010283,5.8418,171.18,171.14,0.063]
[1740191010474,4.32,171.16,171.14,0.063]
[1740191011503,5.8428,171.15,171.14,0.063]
[1740191014272,17.61689536,171.15,171.03,81.5]
[1740191014470,53.4,171.14,171.05,19.57699536]
[1740191015367,53.4,171.13,171.05,19.57699536]
[1740191016289,5.8438,171.12,171.05,19.57699536]
[1740191017478,2.92698635,171.11,171.05,19.57699536]
[1740191017685,81.2,171.1,171.05,19.57699536]
[1740191017986,81.2,171.1,171.07,11.77409536]
[1740191018785,81.2,171.1,171.09,11.77409536]
[1740191019467,81.2,171.1,171.07,11.77409536]
[1740191019662,87.0445,171.1,171.07,11.77409536]
[1740191021975,87.0445,171.1,171.05,19.57699536]
[1740191022183,81.2,171.09,171.05,19.57699536]
[1740191022994,5.8452,171.08,171.05,19.57699536]
[1740191024792,81.2,171.09,171.07,11.77409536]
[1740191025170,87.0449,171.09,171.07,11.77409536]
[1740191029201,87.0449,171.09,171.05,1.5538]
[1740191029402,87.0449,171.09,171.07,11.77409536]
[1740191031697,81.2,171.09,171.07,11.77409536]
[1740191032102,81.2,171.09,171.07,17.61959536]
[1740191032897,81.2,171.12,171.07,17.61959536]
[1740191033101,81.2,171.12,171.1,11.77409536]
[1740191033289,81.2,171.11,171.1,11.77409536]
[1740191040903,53.4,171.15,171.1,30.42374422]
[1740191040904,81.2,171.14,171.1,30.42374422]
[1740191041083,81.2,171.14,171.12,11.77409536]
[1740191041287,87.0431,171.14,171.12,11.77409536]
[1740191043095,87.0431,171.14,171.1,11.77409536]
[1740191044890,81.2,171.13,171.1,11.77409536]
[1740191045186,5.8438,171.12,171.1,11.77409536]
[1740191045486,5.8438,171.12,171.08,11.77409536]
[1740191048811,5.8438,171.12,171.1,11.77409536]
[1740191049810,8.78020651,171.12,171.1,11.77409536]
[1740191050892,81.2,171.11,171.1,11.77409536]
[1740191051592,87.0441,171.11,171.1,11.77409536]
[1740191051916,81.2,171.11,171.1,11.83709536]
[1740191056118,87.0441,171.11,171.1,0.063]
[1740191056318,5.8441,171.11,171.1,0.063]
[1740191057623,53.4,171.13,171.1,0.063]
[1740191057807,5.8439,171.12,171.11,11.77409536]
[1740191060726,5.8439,171.12,171.1,0.063]
[1740191061228,4.32,171.11,171.1,0.063]
[1740191061725,10.1641,171.11,171.1,0.063]
[1740191069834,24.7745,171.11,171.07,0.063]
[1740191071339,5.8448,171.09,171.07,0.063]
[1740191074539,134.6,171.08,171.07,0.063]
[1740191074836,53.4,171.08,171.07,0.063]
[1740191075434,59.2452,171.08,171.07,0.063]
[1740191079061,53.4,171.08,171.07,0.063]
[1740191079246,59.2452,171.08,171.07,0.063]
[1740191082932,20.0,171.08,171.07,0.063]
[1740191083131,18.61889536,171.09,171.07,0.0001]
[1740191084324,5.8448,171.09,171.07,0.0001]
[1740191085228,20.0,171.08,171.07,0.0001]
[1740191085427,5.8745,171.1,171.07,0.0001]
[1740191086448,53.4,171.09,171.07,0.0001]
[1740191087147,5.8452,171.08,171.07,0.0001]
[1740191087646,53.4,171.09,171.07,0.0001]
[1740191087950,53.4,171.09,171.07,11.77419536]
[1740191089323,53.4,171.09,171.07,0.0001]
[1740191089524,59.2449,171.09,171.07,0.0001]
[1740191090333,59.2749,171.09,171.07,0.0001]
[1740191108361,59.2749,171.09,171.07,11.77419536]
[1740191108946,59.2749,171.09,171.07,0.0001]
[1740191109254,59.2749,171.09,171.08,11.77409536]
[1740191111380,59.2749,171.09,171.07,0.0001]
[1740191111548,0.03,171.09,171.08,11.77409536]
[1740191112974,5.8748,171.09,171.08,11.77409536]
[1740191113173,0.03,171.09,171.08,11.77409536]
[1740191113375,0.03,171.09,171.07,0.0001]
[1740191116247,81.2,171.08,171.07,0.0001]
[1740191120277,87.0452,171.08,171.07,0.0001]
[1740191120977,81.2,171.08,171.07,0.0001]
[1740191122480,87.0452,171.08,171.07,0.0001]
[1740191123452,81.2,171.08,171.07,0.0001]
[1740191127182,87.0752,171.08,171.07,0.0001]
[1740191129890,81.23,171.08,171.07,0.0001]
[1740191130784,87.0752,171.08,171.07,0.0001]
[1740191135982,5.8752,171.08,171.07,0.0001]
[1740191137292,0.03,171.08,171.07,0.0001]
[1740191145783,0.03,171.08,171.07,18.64974886]
[1740191158290,0.03,171.08,171.07,0.0001]
[1740191160692,81.23,171.08,171.07,0.0001]
[1740191161510,87.0752,171.08,171.07,0.0001]
[1740191163410,5.8752,171.08,171.07,0.0001]
[1740191163707,63.6952,171.08,171.07,0.0001]
[1740191166218,59.2752,171.08,171.07,0.0001]
[1740191166392,20.0,171.05,170.96,7.4532]
[1740191166711,20.0,171.05,171.0,11.77409536]
[1740191166923,20.0,171.05,171.04,11.77409536]
[1740191167219,63.8552,171.08,171.04,11.77409536]
[1740191170916,53.43,171.08,171.06,11.77409536]
[1740191171433,59.2753,171.08,171.07,11.77409536]
[1740191171798,59.2753,171.08,171.05,11.77409536]
[1740191173619,59.2753,171.08,171.02,11.77409536]
[1740191174525,81.797,171.08,171.02,11.77409536]
[1740191175210,20.0,171.06,171.05,0.063]
[1740191176617,25.8459,171.06,171.05,0.063]
[1740191176807,22.5517,171.08,171.05,0.063]
[1740191176808,5.8754,171.08,171.05,0.063]
[1740191179421,0.03,171.08,171.05,0.063]